Workbook

Sheet Owner Statement
C1: Name: IG - HMFI | D1: 12/1/2024 - 12/1/2025 | I1: ANNUAL PROPERTY OPERATING DATA
C2: Location: | D2: 1269 4th Ave SE | I2: Date: | J2: 2025-05-12
B3: Type of Property: | C3: Multi-Family Property | H3: Purchase Price: | I3: 179000
C4: Size of Property: # Units: 8 | H4: Cost of Acquisition:
B5: Purpose: | C5: Owner's Statement | E5: Broker's Reconstructed | J5: Price Per Unit | K5: =I3/2 -> 89500
C6: Existing Financing | E6: Potential Financing | J6: Down Payment: | K6: =I3*0.25 -> 44750
C7: Seller's Position | E7: Buyer's Position
C8: Forecast
B10: Existing | C10: Balance | D10: Payment | E10: #Pmts/Yr | F10: Interest | G10: Term
B11: 1st
B12: 2nd
B13: 3rd
C14: Potential:
B15: 1st
B16: 2nd
E17: $/sf or | G17: %
B18: ALL FIGURES ANNUAL | C18: $/unit | E18: of GOI | H18: Comments/Footnotes
A19: 1 | B19: POTENTIAL RENTAL INCOME | E19: =2400*12 -> 28800 | H19: Rent: $1200 x 2 | I19: =1200+1200 -> 2400
A20: 2 | B20: Less: Vacancy & Cr Losses | E20: =E19*0.05 -> 1440
A21: 3 | B21: EFFECTIVE RENTAL INCOME | E21: =E19-E20 -> 27360
A22: 4 | B22: Plus: Other Income
A23: 5 | B23: GROSS OPERATING INCOME | E23: =E21+E22 -> 27360
B24: OPERATING EXPENSES:
A25: 6 | B25: Real Estate Taxes | E25: 1785 | F25: 2025
A26: 7 | B26: Personal Property Taxes
A27: 8 | B27: Property Insurance | E27: 1998
A28: 9 | B28: Off-site Management
A29: 10 | B29: Management
A30: 11 | B30: Expenses / Benefits
A31: 12 | B31: Taxes / Workers' Comp
A32: 13 | B32: Repairs and Maintenance | E32: 2508
B33: Utilities
A34: 14 | B34: Electric | G34: Tenants Pay for all utilities | I34: Water | J34: 1245.79
A35: 15 | B35: Gas | G35: Utilities Sepreatley Metered
A36: 16 | B36: Water | I36: Gas | J36: 422.69
A37: 17 | B37: ALL COMMON COSTS
A38: 18 | B38: Accounting and Legal | I38: Electric | J38: 2130.51
A39: 19 | B39: RE Leasing Commissions
A40: 20 | B40: Advertising/Licenses/Permits
A41: 21 | B41: Supplies
A42: 22 | B42: Miscellaneous
B43: Contract Services:
A44: 23 | B44: Lawn & Snow | E44: 0
A45: 24 | B45: Garbage
A46: 25 | B46: Cleaning Payroll
A47: 26 | B47: Exterminator
A48: 27 | B48: Reserves
A49: 28
A50: 29 | B50: TOTAL OPERATING EXPENSES | E50: =SUM(E25:E49) -> 6291
A51: 30 | B51: NET OPERATING INCOME | E51: =E23-E50 -> 21069
A52: 31 | B52: Less:Annual Debt Service
A53: 35 | B53: CASH FLOW BEFORE TAXES | E53: =E51-E52 -> 21069
B54: *Information deemed reliable but not
B55: guaranteed. Rates of return and cash flow
B56: are not warranted or guaranteed by seller
B57: or by broker. Past performance does not
B58: guaranty future results.

Sheet Forecast
C1: Name: IG - HMFI | D1: Duplex | I1: ANNUAL PROPERTY OPERATING DATA
C2: Location: | D2: 1269 4th Ave SE | I2: Date: | J2: 2025-05-12
B3: Type of Property: | C3: Multi-Family Property | H3: Purchase Price: | I3: 179000
C4: Size of Property: # Units: 8 | H4: Cost of Acquisition:
B5: Purpose: | C5: Owner's Statement | E5: Broker's Reconstructed | J5: Price Per Unit | K5: =I3/2 -> 89500
C6: Existing Financing | E6: Potential Financing | J6: Down Payment: | K6: =I3*0.25 -> 44750
C7: Seller's Position | E7: Buyer's Position
C8: Forecast
B10: Existing | C10: Balance | D10: Payment | E10: #Pmts/Yr | F10: Interest | G10: Term
B11: 1st
B12: 2nd
B13: 3rd
C14: Potential:
B15: 1st
B16: 2nd
E17: $/sf or | G17: %
B18: ALL FIGURES ANNUAL | C18: $/unit | E18: of GOI | H18: Comments/Footnotes
A19: 1 | B19: POTENTIAL RENTAL INCOME | E19: =2900*12 -> 34800 | H19: Rent: 2900 | I19: 1400 & 1500
A20: 2 | B20: Less: Vacancy & Cr Losses | E20: =E19*0.05 -> 1740 | F20: 0.05
A21: 3 | B21: EFFECTIVE RENTAL INCOME | E21: =E19-E20 -> 33060
A22: 4 | B22: Plus: Other Income
A23: 5 | B23: GROSS OPERATING INCOME | E23: =E21+E22 -> 33060
B24: OPERATING EXPENSES:
A25: 6 | B25: Real Estate Taxes | E25: 1785 | F25: 2025
A26: 7 | B26: Personal Property Taxes
A27: 8 | B27: Property Insurance | E27: 1998
A28: 9 | B28: Off-site Management
A29: 10 | B29: Management | E29: =E23*0.07 -> 2314.2 | F29: 0.07
A30: 11 | B30: Expenses / Benefits
A31: 12 | B31: Taxes / Workers' Comp
A32: 13 | B32: Repairs and Maintenance | E32: =E21*0.1 -> 3306 | F32: 0.1
B33: Utilities
A34: 14 | B34: Electric
A35: 15 | B35: Gas | G35: Tenants Pay for all utilities | I35: Water | J35: 1245.79
A36: 16 | B36: Water | G36: Utilities Sepreatley Metered
A37: 17 | B37: ALL COMMON COSTS | I37: Gas | J37: 422.69
A38: 18 | B38: Accounting and Legal
A39: 19 | B39: RE Leasing Commissions | I39: Electric | J39: 2130.51
A40: 20 | B40: Advertising/Licenses/Permits | E40: 750
A41: 21 | B41: Supplies
A42: 22 | B42: Miscellaneous
B43: Contract Services:
A44: 23 | B44: Lawn & Snow | E44: 3200
A45: 24 | B45: Garbage
A46: 25 | B46: Cleaning Payroll
A47: 26 | B47: Exterminator
A48: 27 | B48: Reserves | E48: 1200
A49: 28
A50: 29 | B50: TOTAL OPERATING EXPENSES | E50: =SUM(E25:E49) -> 14553.2
A51: 30 | B51: NET OPERATING INCOME | E51: =E23-E50 -> 18506.8
A52: 31 | B52: Less:Annual Debt Service
A53: 35 | B53: CASH FLOW BEFORE TAXES | E53: =E51-E52 -> 18506.8
B54: *Information deemed reliable but not
B55: guaranteed. Rates of return and cash flow
B56: are not warranted or guaranteed by seller
B57: or by broker. Past performance does not
B58: guaranty future results.
